Cogmind - Beta 11 @@@ ROGUE MODE // 2022.03.21 @ 10:30:16 Player: AnthonyDPS 2004 Result: Destroyed by H-66 Slayer with Gauss Rifle Performance ------------- Evolutions (5) 2500 Regions Visited (8) 1600 Robots Destroyed (22) 110 Value Destroyed (293) 293 Prototype IDs (7) 140 Alien Tech Used (0) 0 Bonus (97) 97 TOTAL SCORE: 4740 Bonus ------- Follower Combat Kills 97 Cogmind --------- Core Integrity 0/1000 Matter 83/300 Energy 100/100 System Corruption 0% Temperature Cool (0) Movement Core (100) Ox1 Location -5/Upper Caves Parts ------- > --- POWER (2) -------- (None) > --- PROPULSION (4) --- (None) > --- UTILITY (9) ------ Makeshift Trap Scanner Advanced Terrain Scan Processor Improved System Shield > --- WEAPON (2) ------- (None) > --- INVENTORY (5) ---- Light Fission Core Energy Well (350) System Restoration Module Peak State ------------ > --- POWER ------------ Micro Nuclear Core Micro Fission Core > --- PROPULSION ------- Gravmag System Gravmag System Improved Gravmag System Antigrav System > --- UTILITY ---------- Small Storage Unit Improved Terrain Scanner Advanced Terrain Scan Processor Seismic Detector Transmission Jammer Hardened Medium Armor Plating Hacking Suite Improved System Shield Advanced Trap Extractor > --- WEAPON ----------- Remote Datajack Chainsword > --- INVENTORY -------- Light Fission Core Compact Wheel Airjet Gravmag System Energy Well Weight Redist. System System Restoration Module Chainsword [Rating: 69] Favorites ----------- Power Light Ion Engine Engine Light Ion Engine Power Core Micro Nuclear Core Propulsion Gravmag System Leg VSS Leg Wheel Compact Wheel Hover Unit Gravmag System Flight Unit Improved Cesium-ion Thruster Utility Hacking Suite Device Improved Terrain Scanner Storage Small Storage Unit Processor Advanced Terrain Scan Processor Hackware Hacking Suite Protection Hardened Medium Armor Plating Weapon Remote Datajack Energy Gun Medium Laser Energy Cannon Light EM Pulse Cannon Ballistic Gun Light Assault Rifle Ballistic Cannon Gauss Cannon Launcher Grenade Launcher Special Weapon Remote Datajack Slashing Weapon Chainsword Build | -11 -10 -9 -8 -8 -7 -6 -5 -5 ------- Run | Scr Mat Mat Mat Sto Fac Fac Fac Upp Slots Evolved 10 | . . 2 2 . 2 2 2 . Power 1 | . . . . . . 1 . . Propulsion 2 | . . 1 . . . . 1 . Utility 7 | . . 1 2 . 2 1 1 . Weapon . | . . . . . . . . . Parts Attached 102 | 9 7 14 9 11 18 14 7 13 Power 15 | 1 1 . . 4 1 6 1 1 Engine 7 | 1 1 . . 3 . 2 . . Core 8 | . . . . 1 1 4 1 1 Reactor . | . . . . . . . . . Propulsion 39 | 3 4 5 3 4 7 2 4 7 Treads . | . . . . . . . . . Leg 2 | . . . . . 2 . . . Wheel 9 | 3 3 1 . . 1 . . 1 Hover 27 | . 1 4 3 4 4 2 3 6 Flight 1 | . . . . . . . 1 . Utility 34 | 3 2 5 5 3 7 4 1 4 Device 20 | 2 1 4 3 2 2 1 1 4 Storage 3 | 1 . . 1 . 1 . . . Processor 5 | . 1 1 . . 3 . . . Hackware 3 | . . . 1 1 . 1 . . Protection 3 | . . . . . 1 2 . . Artifact . | . . . . . . . . . Weapon 14 | 2 . 4 1 . 3 2 1 1 Energy Gun 2 | 1 . 1 . . . . . . Energy Cannon 1 | . . 1 . . . . . . Ballistic Gun 2 | 1 . 1 . . . . . . Ballistic Cannon 1 | . . . . . 1 . . . Launcher 2 | . . 1 1 . . . . . Special Weapon 1 | . . . . . . 1 . . Impact Weapon . | . . . . . . . . . Slashing Weapon 5 | . . . . . 2 1 1 1 Piercing Weapon . | . . . . . . . . . Special Melee Weapon . | . . . . . . . . . Unidentified Prototypes 3 | . . . 1 1 . . 1 . Corrupted Parts 1 | . . 1 . . . . . . System Corruption 1 | . . 1 . . . . . . Parts Lost 30 | . . . 1 10 1 . . 18 Power 4 | . . . . 2 . . . 2 Propulsion 14 | . . . . 5 1 . . 8 Utility 11 | . . . 1 3 . . . 7 Weapon 1 | . . . . . . . . 1 Highest Loss Streak 6 | . . . 1 5 1 . . 6 To Critical Strikes 1 | . . . . . . . . 1 Average Slot Usage (%) 85 | . 99 100 96 64 83 86 100 75 Engine 3 | . 14 11 9 5 . 2 . . Core 3 | . . . . . 1 5 11 7 Leg 1 | . . . . . 7 . . . Wheel 2 | . 27 1 . . 5 . . . Hover 18 | . . 31 27 24 9 20 22 13 Device 18 | . 13 11 17 7 23 21 23 21 Storage 6 | . 14 11 9 8 1 6 5 2 Processor 7 | . . 11 9 6 11 6 5 5 Hackware 7 | . . . 9 10 7 8 11 10 Protection 2 | . . . . . 5 5 5 2 Energy Gun 1 | . 14 3 . . . . . . Ballistic Gun 2 | . 14 11 1 . . . . . Launcher 1 | . . 6 7 . . . . . Special Weapon 2 | . . . . . . 6 5 4 Slashing Weapon 1 | . . . . . 4 1 5 2 Naked Turns . | . . . . . . . . . Heaviest Build 37 | 12 12 14 26 23 27 34 35 37 Greatest Support 43 | 32 26 20 24 24 27 34 43 43 Greatest Overweight (x) 10 | . . 1 1 3 3 10 1 7 Average Overweight (x) . | . . . . . . . . . Largest Inventory Capacity 10 | 8 8 8 10 10 8 8 8 8 Average Capacity 7 | 7 8 8 9 9 5 8 8 6 Most Carried 10 | 8 8 8 10 10 6 8 8 8 Average Carried 6 | 5 7 7 8 8 2 7 6 5 Final Capacity 10 | 8 8 8 10 5 8 8 8 5 Final Carried 9 | 8 8 8 9 2 6 8 8 3 Class Distribution -------------------- 32% | Scavenger-Mutant 31% | Hacker-Mutant 31% | Mutant 3% | Infiltrator-Mutant Dominant Class ---------------- Scavenger-Mutant | -10/Materials Scavenger-Mutant | -9/Materials Mutant | -8/Materials Mutant | -8/Storage Mutant | -7/Factory Scavenger-Mutant | -6/Factory Hacker-Mutant | -5/Factory Hacker-Mutant | -5/Upper Caves Resources | -11 -10 -9 -8 -8 -7 -6 -5 -5 ----------- Run | Scr Mat Mat Mat Sto Fac Fac Fac Upp Matter Collected 1030 | 299 43 50 . 316 204 . . 118 Remotely . | . . . . . . . . . Salvage Created 799 | 179 130 72 24 . 394 . . . Parts 60 | 16 14 9 1 . 20 . . . Haulers Intercepted . | . . . . . . . . . Recyclers Shooed 1 | . 1 . . . . . . . Parts Field Recycled . | . . . . . . . . . Retrieved Matter . | . . . . . . . . . Parts Self-Destructed 3 | . . . . . . . . 3 Prevented . | . . . . . . . . . Kills | -11 -10 -9 -8 -8 -7 -6 -5 -5 ------- Run | Scr Mat Mat Mat Sto Fac Fac Fac Upp Combat Hostiles Destroyed 4 | . 3 . . . 1 . . . Melee 1 | . . . . . 1 . . . Guns 3 | . 3 . . . . . . . Classes Destroyed 8 | 3 2 1 1 . 1 . . . Worker 4 | 1 . 1 . . 2 . . . Builder 1 | . . . 1 . . . . . Tunneler 4 | 4 . . . . . . . . Recycler 5 | 1 . . . . 4 . . . Operator 2 | . . 2 . . . . . . Watcher 2 | . 1 1 . . . . . . Grunt 3 | . 3 . . . . . . . Programmer 1 | . . . . . 1 . . . Best Kill Streak 6 | 3 3 1 1 . 6 . . . Combat Bots Only 2 | . 2 . . . 1 . . . Max Kills in Single Turn 1 | 1 1 1 1 . 1 . . . Gunslinging . | . . . . . . . . . Exploded . | . . . . . . . . . Melee 1 | . . . . . 1 . . . Uniques/NPCs Destroyed . | . . . . . . . . . Combat | -11 -10 -9 -8 -8 -7 -6 -5 -5 -------- Run | Scr Mat Mat Mat Sto Fac Fac Fac Upp Damage Taken 3595 | . 75 12 212 943 318 18 109 1908 Core 1394 | . 31 . 33 253 76 . 16 985 Absorbed by Shields . | . . . . . . . . . Regen/Repaired (Parts) 55 | . . . . . . 53 2 . Core Remaining (%) 87 | 100 87 100 . 48 89 100 . . Volleys Fired 75 | 9 32 12 4 . . 12 . 6 Largest 2 | 2 2 2 1 . . 1 . 1 Hottest 70 | 70 70 70 39 . . 5 . 5 Shots Fired 120 | 18 64 16 4 . . 12 . 6 Gun 93 | 18 64 11 . . . . . . Cannon 2 | . . 2 . . . . . . Launcher 7 | . . 3 4 . . . . . Special 18 | . . . . . . 12 . 6 Kinetic 48 | 9 32 7 . . . . . . Thermal 44 | 9 32 3 . . . . . . Explosive 7 | . . 3 4 . . . . . Electromagnetic 3 | . . 3 . . . . . . Robot Hit Streak 13 | 8 13 4 2 . . 5 . 6 Robot Miss Streak 3 | 1 3 1 . . . 3 . 1 Penetration Max . | . . . . . . . . . Secondary Targets . | . . . . . . . . . Shots Hit Robots 63 | 11 20 9 1 . 10 7 . 5 Core Hits 29 | 7 8 5 3 1 5 . . . Critical Kills . | . . . . . . . . . Critical Parts Destroyed . | . . . . . . . . . Critical Strikes 1 | . 1 . . . . . . . Burn 1 | . 1 . . . . . . . Melee Attacks 21 | . . . . . 15 3 . 3 Impact . | . . . . . . . . . Slashing 21 | . . . . . 15 3 . 3 Piercing . | . . . . . . . . . Sneak Attacks 6 | . . . . . 6 . . . Combat Hostiles . | . . . . . . . . . Follow-up Attacks 2 | . . . . . 2 . . . Damage Inflicted 1450 | 120 207 146 308 42 619 . . 8 Guns 418 | 120 207 91 . . . . . . Cannons 28 | . . 28 . . . . . . Explosions 244 | . . 27 217 . . . . . Melee 619 | . . . . . 619 . . . Ramming 141 | . . . 91 42 . . . 8 Kinetic 167 | 32 93 42 . . . . . . Thermal 227 | 88 114 25 . . . . . . Explosive 244 | . . 27 217 . . . . . Electromagnetic 52 | . . 52 . . . . . . Impact . | . . . . . . . . . Slashing 619 | . . . . . 619 . . . Piercing . | . . . . . . . . . Highest Corruption 10 | . 2 1 4 10 5 . . . Average Corruption 4 | . 2 1 3 6 4 . . . Corruption Purged . | . . . . . . . . . Corruption Blocked . | . . . . . . . . . Effects 21 | . . 1 . 15 5 . . . Message Errors 2 | . . . . 2 . . . . Matter Fused 7 | . . 1 . 4 2 . . . Heat Flow Errors 3 | . . . . 2 1 . . . Energy Discharges 3 | . . . . 3 . . . . Parts Rejected 1 | . . . . 1 . . . . Data Loss (minor) 4 | . . . . 3 1 . . . Data Loss (major) 1 | . . . . . 1 . . . Overload Shots . | . . . . . . . . . Overflow Damage 88 | . . 6 1 . 81 . . . Projectiles 6 | . . 6 . . . . . . Explosions 1 | . . . 1 . . . . . Melee 81 | . . . . . 81 . . . Knockbacks 1 | . . . . 1 . . . . Impact 1 | . . . . 1 . . . . Kinetic . | . . . . . . . . . Secondary . | . . . . . . . . . Self-Inflicted Damage 103 | . . . 81 18 . . . 4 Shots 1 | . . . 1 . . . . . Rammed 20 | . . . 11 8 . . . 1 Targets Rammed 20 | . . . 11 8 . . . 1 Kicked . | . . . . . . . . . Crushed . | . . . . . . . . . Highest Temperature 281 | 60 230 35 2 139 281 . . 230 Average Temperature 67 | 28 74 14 2 46 152 . . 73 Received Heat Transfer 864 | . 42 6 63 513 27 9 . 204 Effects 1 | . 1 . . . . . . . Energy Bleed 1 | . 1 . . . . . . . Siege Activations . | . . . . . . . . . Robots Corrupted . | . . . . . . . . . Combat Hostiles . | . . . . . . . . . Parts Fried . | . . . . . . . . . Impact Corruptions . | . . . . . . . . . Robots Melted . | . . . . . . . . . Combat Hostiles . | . . . . . . . . . Parts Melted . | . . . . . . . . . Heat Transferred 740 | 259 407 74 . . . . . . Parts Sabotaged . | . . . . . . . . . Parts Stolen . | . . . . . . . . . Parts Stripped . | . . . . . . . . . Power Chain Reactions . | . . . . . . . . . Missiles Intercepted . | . . . . . . . . . Alert | -11 -10 -9 -8 -8 -7 -6 -5 -5 ------- Run | Scr Mat Mat Mat Sto Fac Fac Fac Upp Peak Influence 351 | 30 169 351 125 288 60 92 68 . Initial 72 | . 19 70 72 48 . 29 5 . Average 65 | 13 124 153 71 112 15 37 9 . Maximum Alert Level 1 | . . 1 . 1 . . . . Low Security (%) 96 | 100 100 79 100 94 100 100 100 . Level 1 3 | . . 20 . 5 . . . . Level 2 . | . . . . . . . . . Level 3 . | . . . . . . . . . Level 4 . | . . . . . . . . . Level 5 . | . . . . . . . . . High Security . | . . . . . . . . . Max Security . | . . . . . . . . . Squads Dispatched 12 | . 2 2 2 2 2 1 1 . Investigation 4 | . . . . 2 1 1 . . Extermination 2 | . . . . . 1 . 1 . Reinforcement 6 | . 2 2 2 . . . . . Assault . | . . . . . . . . . Garrison . | . . . . . . . . . Intercept . | . . . . . . . . . Searches Triggered . | . . . . . . . . . Construction Impeded 1 | . . . 1 . . . . . Haulers Reinforced . | . . . . . . . . . Active Scanning Responses . | . . . . . . . . . Cargo Convoy Interrupts . | . . . . . . . . . Stealth | -11 -10 -9 -8 -8 -7 -6 -5 -5 --------- Run | Scr Mat Mat Mat Sto Fac Fac Fac Upp Distress Signals 6 | . 1 . 2 2 . 1 . . Communications Jammed 3 | . . . . . . 3 . . Distress Signals 3 | . . . . . . 3 . . Times Spotted 83 | . 6 10 14 27 3 3 5 15 Peak Tracking Total 13 | . 3 2 7 13 2 3 6 7 Tactical Retreats 17 | . . 3 3 3 . 2 1 5 Traps | -11 -10 -9 -8 -8 -7 -6 -5 -5 ------- Run | Scr Mat Mat Mat Sto Fac Fac Fac Upp Traps Triggered 2 | . 1 . . 1 . . . . Indirectly . | . . . . . . . . . Trap Hack Attempts . | . . . . . . . . . Triggered . | . . . . . . . . . Disarmed 3 | . . . . 3 . . . . Reprogrammed 7 | . . . . 7 . . . . Reused 5 | . . . . 5 . . . . Traps Extracted . | . . . . . . . . . Installed . | . . . . . . . . . Triggered 6 | . . . . 5 . . . 1 Machines | -11 -10 -9 -8 -8 -7 -6 -5 -5 ---------- Run | Scr Mat Mat Mat Sto Fac Fac Fac Upp Machines Disabled . | . . . . . . . . . Max in Single Turn . | . . . . . . . . . Garrison Access 1 | . . . . . . 1 . . Machines Sabotaged . | . . . . . . . . . Garrisons Compromised . | . . . . . . . . . Overloaded Fab Kills . | . . . . . . . . . Hacking | -11 -10 -9 -8 -8 -7 -6 -5 -5 --------- Run | Scr Mat Mat Mat Sto Fac Fac Fac Upp Machines Accessed 33 | . 2 1 4 10 3 8 3 2 Terminals 21 | . 2 . 3 9 2 2 2 1 Fabricators 1 | . . . . . 1 . . . Repair Stations 5 | . . . . . . 4 1 . Recycling Units 1 | . . . . 1 . . . . Scanalyzers 3 | . . 1 1 . . 1 . . Garrison Access 1 | . . . . . . 1 . . Total Hacks 119 | . 9 7 23 38 8 22 7 5 Successful 88 | . 4 7 20 26 6 14 6 5 Failed 31 | . 5 . 3 12 2 8 1 . Catastrophic 6 | . 2 . . 1 . 2 1 . Database Lockouts . | . . . . . . . . . Manual . | . . . . . . . . . Terminals 76 | . 9 . 11 34 5 8 5 4 Fabricators 3 | . . . . . 3 . . . Repair Stations 11 | . . . . . . 9 2 . Recycling Units 4 | . . . . 4 . . . . Scanalyzers 22 | . . 7 12 . . 3 . . Garrison Access 2 | . . . . . . 2 . . Terminal Hacks 51 | . 4 . 8 22 4 4 4 5 Record 8 | . . . . . . 4 . 4 Part Schematic 1 | . . . . 1 . . . . Robot Schematic 1 | . . . . 1 . . . . Robot Analysis 1 | . . . 1 . . . . . Prototype ID Bank 2 | . . . 2 . . . . . Open Door 6 | . . . . 5 . . . 1 Open DSF 1 | . . . . . 1 . . . Level Access Points 2 | . . . . 1 1 . . . Emergency Access Points 2 | . . . . . 1 . 1 . Alert Level 1 | . . . . . . . 1 . Unreport Threat 1 | . . . 1 . . . . . Locate Traps 4 | . 1 . 1 1 1 . . . Disarm Traps 4 | . . . . 4 . . . . Reprogram Traps 3 | . . . . 3 . . . . Dispatch Records 4 | . . . . 3 . . 1 . Maintenance Status 1 | . 1 . . . . . . . Transport Status 2 | . . . 1 1 . . . . Hauler Manifests 3 | . 1 . . 1 . . 1 . Zone Layout 4 | . 1 . 2 1 . . . . Fabricator Hacks 2 | . . . . . 2 . . . Load Schematic 1 | . . . . . 1 . . . Build 1 | . . . . . 1 . . . Repair Station Hacks 9 | . . . . . . 7 2 . Scan Component 5 | . . . . . . 4 1 . Repair 4 | . . . . . . 3 1 . Recycling Unit Hacks 4 | . . . . 4 . . . . Recycle Component 1 | . . . . 1 . . . . Process 2 | . . . . 2 . . . . Retrieve Matter 1 | . . . . 1 . . . . Scanalyzer 21 | . . 7 12 . . 2 . . Insert Component 10 | . . 4 5 . . 1 . . Analyze 11 | . . 3 7 . . 1 . . Garrison Access Hacks 1 | . . . . . . 1 . . Seal Access 1 | . . . . . . 1 . . Unauthorized Hacks . | . . . . . . . . . Terminals . | . . . . . . . . . Fabricators . | . . . . . . . . . Repair Stations . | . . . . . . . . . Recycling Units . | . . . . . . . . . Scanalyzers . | . . . . . . . . . Garrison Access . | . . . . . . . . . Data Cores Recovered . | . . . . . . . . . Used . | . . . . . . . . . Hacking Detections 22 | . 2 1 2 7 2 6 1 1 Full Trace Events 7 | . 1 . 1 2 1 1 . 1 Feedback Events . | . . . . . . . . . Feedback Blocked . | . . . . . . . . . Robot Schematics Acquired 1 | . . . . 1 . . . . Robots Built . | . . . . . . . . . Authchips . | . . . . . . . . . Time . | . . . . . . . . . Total Robot Build Rating . | . . . . . . . . . Part Schematics Acquired 10 | . . 3 5 1 . 1 . . Parts Built 1 | . . . . . 1 . . . Authchips . | . . . . . . . . . Time 84 | . . . . . 84 . . . Total Part Build Rating 4 | . . . . . 4 . . . Parts Repaired 4 | . . . . . . 3 1 . Time 111 | . . . . . . 85 26 . Parts Recycled 1 | . . . . 1 . . . . Recycled Matter 34 | . . . . 34 . . . . Retrieved Matter 34 | . . . . 34 . . . . Retrieved Components . | . . . . . . . . . Parts Scanalyzed 9 | . . 3 5 . . 1 . . Part Schematics Acquired 9 | . . 3 5 . . 1 . . Parts Damaged . | . . . . . . . . . Bothacking | -11 -10 -9 -8 -8 -7 -6 -5 -5 ------------ Run | Scr Mat Mat Mat Sto Fac Fac Fac Upp Used RIF Installer . | . . . . . . . . . Robots Hacked 7 | . . . . . . 5 . 2 Non-combat 5 | . . . . . . 5 . . Combat 2 | . . . . . . . . 2 Robot Hacks Applied 11 | . . . . . . 7 . 4 parse_system 5 | . . . . . . 1 . 4 no_distress 5 | . . . . . . 5 . . find_chute 1 | . . . . . . 1 . . Relay Couplers Released . | . . . . . . . . . Fabnet Peak Effective % . | . . . . . . . . . Robots Rewired . | . . . . . . . . . Allies Hacked . | . . . . . . . . . Hacks Repelled . | . . . . . . . . . Allies | -11 -10 -9 -8 -8 -7 -6 -5 -5 -------- Run | Scr Mat Mat Mat Sto Fac Fac Fac Upp Total Allies 10 | . . . . 10 . . . . Largest Group 9 | . . . . 9 . . . . Highest-Rated Group 157 | . . . . 157 . . . . Highest-Rated Ally 29 | . . . . 29 . . . . Total Orders . | . . . . . . . . . Ally Attacks 37 | . . . . 37 . . . . Total Damage 494 | . . . . 494 . . . . Kills 3 | . . . . 3 . . . . Allies Corrupted . | . . . . . . . . . Allies Melted . | . . . . . . . . . Intel | -11 -10 -9 -8 -8 -7 -6 -5 -5 ------- Run | Scr Mat Mat Mat Sto Fac Fac Fac Upp Robot Analysis Total 1 | . . . 1 . . . . . Derelict Logs Recovered 1 | . . . . . . . . 1 Drone Launches . | . . . . . . . . . Drone Recoveries . | . . . . . . . . . Exploration | -11 -10 -9 -8 -8 -7 -6 -5 -5 ------------- Run | Scr Mat Mat Mat Sto Fac Fac Fac Upp Turns Passed 4073 | 192 227 500 273 452 738 641 281 769 Spaces Moved 3716 | 154 123 388 331 547 351 447 330 1045 Core 88 | 13 . . . 17 3 1 . 54 Treads . | . . . . . . . . . Legs 58 | . . . . . 58 . . . Wheels 477 | 141 123 15 . . 149 . . 49 Hover 3093 | . . 373 331 530 141 446 330 942 Flight . | . . . . . . . . . Fastest Speed 42 | 50 80 52 42 42 52 52 48 48 Average Speed 62 | 90 83 53 63 56 80 53 48 63 Slowest Speed 550 | 100 90 125 102 200 200 550 111 400 Overloaded Moves . | . . . . . . . . . Propulsion Burnouts . | . . . . . . . . . Robots Hopped . | . . . . . . . . . Cave-ins Triggered . | . . . . . . . . . Exploration Rate (%) 23 | 4 23 27 23 39 7 10 6 68 Regions Visited 8 Branch Regions 2 Pre-discovered Areas . | . . . . . . . . . Known Exits Taken 5 | . 1 1 1 1 1 . . . Unknown Exits Taken 3 | 1 . . . . . 1 1 . Scrap Searched 2 | . . . . . . . . 2 Spaces Dug 55 | . . 17 32 . . 3 . 3 Terrain Destroyed 86 | . . 23 57 . . 3 . 3 Melee 6 | . . . . . . 3 . 3 Projectile . | . . . . . . . . . AOE 80 | . . 23 57 . . . . . Terrain Rammed . | . . . . . . . . . Walls Destroyed . | . . . . . . . . . Machines Disabled . | . . . . . . . . . Actions | -11 -10 -9 -8 -8 -7 -6 -5 -5 --------- Run | Scr Mat Mat Mat Sto Fac Fac Fac Upp Total 5339 | 190 189 665 393 688 787 837 450 1140 Wait 1283 | 2 20 234 11 109 386 352 108 61 Move 3708 | 153 122 387 330 546 350 446 329 1045 Hop . | . . . . . . . . . Pick Up 55 | 13 2 7 13 2 11 3 3 1 Fast Attach 41 | 6 1 4 1 3 10 7 3 6 Attach 31 | 1 1 3 2 8 6 2 3 5 Detach 10 | . 2 1 . . 3 2 1 1 Swap 30 | 2 5 7 6 . 2 5 1 2 Drop 60 | 4 4 10 15 4 7 5 2 9 Fire 75 | 9 32 12 4 . . 12 . 6 Melee 18 | . . . . . 12 3 . 3 Ram 20 | . . . 11 8 . . . 1 Kick . | . . . . . . . . . Crush . | . . . . . . . . . Escape Stasis 6 | . . . . 6 . . . . Rewire 2 | . . . . 2 . . . . Trap . | . . . . . . . . . Miscellaneous . | . . . . . . . . . Route ------- -11/Scrapyard -10/Materials -9/Materials -8/Materials -8/Storage -7/Factory (discovered 4 exits: *Fac x4) -6/Factory -5/Factory -5/Upper Caves (discovered 1 exit: Upp) History --------- Turn | Location | Event 8 | -11/Scrapyard | Discovered new exit (range 14) 193 | -11/Scrapyard | Entered Materials 335 | -10/Materials | Discovered new exit (range 15) 420 | -10/Materials | Identified exit to Materials 420 | -10/Materials | Entered another Materials area 420 | -9/Materials | Evolved 2 slots: Propulsion x1, Utility x1 575 | -9/Materials | Build established: Scavenger-Mutant 907 | -9/Materials | Discovered new exit (range 8) 910 | -9/Materials | Identified exit to Materials 920 | -9/Materials | Entered another Materials area 920 | -8/Materials | Evolved 2 slots: Utility x2 940 | -8/Materials | Discovered new exit (range 18) 1192 | -8/Materials | Identified exit to Storage 1193 | -8/Materials | Entered Storage 1532 | -8/Storage | System corruption reached 10% 1548 | -8/Storage | Lost 5 parts (2n3u) 1578 | -8/Storage | Identified exit to Factory 1580 | -8/Storage | Assisted by bots powering up and referring to "LRC-V3" 1634 | -8/Storage | Core integrity fell below 50% 1645 | -8/Storage | Entered Factory 1645 | -7/Factory | Evolved 2 slots: Utility x2 1660 | -7/Factory | Lost 4 parts (1p3n) 1727 | -7/Factory | Identified exit to DSF 2057 | -7/Factory | Build established: Mutant 2120 | -7/Factory | Identified exit to Factory 2340 | -7/Factory | Fabricated Remote Datajack (x1) 2383 | -7/Factory | Entered another Factory area 2383 | -6/Factory | Evolved 2 slots: Power x1, Utility x1 2501 | -6/Factory | Build established: Scavenger-Mutant 2819 | -6/Factory | Repaired Gravmag System 2911 | -6/Factory | Repaired Hrd. Medium Armor Plating 2937 | -6/Factory | Discovered new exit (range 7) 2997 | -6/Factory | Repaired Mic. Nuclear Core 3024 | -6/Factory | Entered another Factory area 3024 | -5/Factory | Evolved 2 slots: Propulsion x1, Utility x1 3066 | -5/Factory | Build established: Hacker-Mutant 3174 | -5/Factory | Repaired Com. Wheel 3184 | -5/Factory | Discovered new exit (range 12) 3305 | -5/Factory | Entered Upper Caves 3447 | -5/Upper Caves | Learned location of 1 exit from Factory 3594 | -5/Upper Caves | Attracted the attention of an 0b10 base 3609 | -5/Upper Caves | Identified exit to Upper Caves 3609 | -5/Upper Caves | Learned location of 1 exit from Upper Caves 3609 | -5/Upper Caves | Learned Research emergency access door positions 3660 | -5/Upper Caves | Lost 6 parts (4n2u) 3807 | -5/Upper Caves | Spotted B-75 Beast 4007 | -5/Upper Caves | Lost 4 parts (2p1n1u) 4049 | -5/Upper Caves | Core integrity fell below 50% 4068 | -5/Upper Caves | Core integrity fell below 20% 4074 | -5/Upper Caves | Destroyed by H-66 Slayer with Gauss Rifle Last Messages --------------- 03964_ Penetrated by Slug. 03967_ Hacking Suite destroyed. 03967_ Slug penetrates Wall. 03970_ Penetrated by Slug. 03970_ Slug penetrates Wall. 03970_ Mic. Fission Core destroyed. 03976_ Penetrated by Slug. 03976_ Lgt. Nuclear Core destroyed. 04024_ Imp. Terrain Scanner destroyed. 04028_ Com. Wheel destroyed. 04028_ Transmission Jammer destroyed. 04028_ Critical hit (Blast). 04029_ Acquired 5 matter. 04043_ Remote Datajack destroyed. 04048_ Penetrated by Slug. 04048_ Adv. Focal Shield destroyed. 04057_ Slug penetrates Wall. 04061_ Penetrated by Slug. 04067_ Weight Redist. System destroyed. 04071_ Penetrated by Slug. Map ----- +----------------------------------------------------+ | ???????#?#########?####################???###??#?? | | ???????###############??### ## ##?##???#####???# | | ?????#####?############## ######?#?#???### | | ????????###??########### #####?##?#? | | ?????## ? ##?####### ####?## | | ?????## #####?## ## ####? | | ????#?# ? ?##?#?#" ## #### ###? | | ?????## ?###?##"# ### ##### #?## | | ???? ? ? ?? #?## /"" ! #"# ###?## ##?#? | | ???????? ?? #### ####"""##### ###### #?##? | | ???? #?#?#?#################### ######## ###?? | | ???????#####??## ####### ############# # ### | | ?????########## ## #############"# ### | | ??????## ##?### ######## ## ## | | ?????## ##### #; ##### ## ## | | ?????# ### #; #### ## ## | | ?????# ### #; #### ## | | ?????# ##; ;; BB ### # | | ?????## #; ;; BB ## ## # | | ??????## #### ;;;; ## #### # | | ???????## ###; % ;;; ### ###### # | | ????????# ## ### ###?### ### | | ????????# h ##########?# ### | | ???????## ###?##?###?### # | | ???????# % ;#?#########?## # | | ???????# #### @ ############## | | ???????# ##?# ;#?#### | | ???????### ##?# % ;#?# | | ?????????#### ??## %#### # | | ????????????## ?### ## #### | | ?#???????????# #?### #### | | ??####????#? #######; #### | | ?#??# ? ##?#? #?###### ## ### # | | ? ## ?##?## ####??## ### #### | | ?##?## ####??# ### ### ##?# | | ? ################## ##### ## #### | | ## ############?##### ###### #### #### # | | ## #########????################## #### ### | | ## ###??###?####?################ #### #### | | ? #######?########???######### #### !#### | | ? ################### ### #### #### | | # ############# #### # ## *!### | | ## #### ####### # ### ### #### ## | | ## #### ####### ### #### #### | | ## ########## ##### ##### ### ## | | ### #### # # ### # ### | | ##### ### ## # #### | | ### ###### #### ### ###### ### | | ## ##?#### ##### #### ######## ## | | # ######## ###################### ## | +----------------------------------------------------+ Best States ------------- Heat Dissipation 40 Energy Generation 28 Energy Capacity 500 Matter Stores 300 Matter Capacity 300 Sight Range 16 Robot Scan Range 14 Terrain Scan Range 16 Terrain Scan Density 210 Jamming Range 12 Additional Mass Support 6 Armor Coverage 225 Resistance: KI 30 Evasion (%) 57 Offensive Hacking 20 Defensive Hacking 12 Item Schematics ----------------- Hover Unit | -9/Materials | Scanalyzed Grenade Launcher | -9/Materials | Scanalyzed Structural Scanner | -9/Materials | Scanalyzed Cld. Airjet | -8/Materials | Scanalyzed Com. Wheel | -8/Materials | Scanalyzed Lgt. Assault Rifle | -8/Materials | Scanalyzed Hacking Suite | -8/Materials | Scanalyzed Seismic Detector | -8/Materials | Scanalyzed Remote Datajack | -8/Storage | Hacked Gravmag System | -6/Factory | Scanalyzed Robot Schematics ------------------ K-01 Serf | -8/Storage | Hacked Fabricated ------------ Remote Datajack | x1 | -7/Factory Alien Tech Used ----------------- None Achievements -------------- Omniscient Cartographer Challenges ------------ None Game ------ Seed SniperElectronDriver Manual? 0 Play Time 01:34:54 Cumulative 23.6 hours Start 2022.03.21 @ 08:54:08 End 2022.03.21 @ 10:30:16 Sessions 1 Manual Loads 0 Difficulty Rogue Special Mode None Game No. 41 Rogue 41 Adventurer 0 Explorer 0 Win Type - Total 0 Types 0/0/0/0/0/0/0/0/0 Lore% 22 Gallery% 26 Achievement% 21 Wizard Run 0 Options --------- ASCII 0 Keyboard 0 Movement Numpad Keybinds 0 Fullscreen 2 Font 18/SmallcapsGlow Map View 76x50 Tactical HUD 1 Map Filters NONE Filters NONE Steam 1 RUN: 4ef823e2-706d-4c8a-8c0f-6e50017212c5